[Event "January 2 Early 2024"]
[Site "https://www.chess.com"]
[Date "2024.01.02"]
[Round "3"]
[White "Firouzja, Alireza"]
[Black "De Winter, Arthur"]
[Result "0-1"]
[Board "4"]
[TimeControl "180+1"]
[WhiteFideId "12573981"]
[BlackFideId "1069020"]
[WhiteElo "3161"]
[BlackElo "2795"]
[WhiteTeam "FRA"]
[BlackTeam "NED"]
[WhiteClock "0:00:00"]
[BlackClock "0:00:08"]

1. d4 {[%clk 0:02:57]}  Nf6 {[%clk 0:02:57]} 2. Bg5 {[%clk 0:02:55]}  d5 {[%clk 0:02:51]} 3. e3 {[%clk 0:02:54]}  c5 {[%clk 0:02:50]} 4. Bxf6 {[%clk 0:02:54]}  gxf6 {[%clk 0:02:50]} 5. dxc5 {[%clk 0:02:55]}  Nc6 {[%clk 0:02:43]} 6. Bb5 {[%clk 0:02:54]}  e6 {[%clk 0:02:38]} 7. b4 {[%clk 0:02:52]}  a5 {[%clk 0:02:34]} 8. c3 {[%clk 0:02:51]}  Bg7 {[%clk 0:02:29]} 9. Ne2 {[%clk 0:02:50]}  O-O {[%clk 0:02:28]} 10. O-O {[%clk 0:02:46]}  axb4 {[%clk 0:02:25]} 11. Bxc6 {[%clk 0:02:46]}  bxc6 {[%clk 0:02:26]} 12. cxb4 {[%clk 0:02:46]}  Ba6 {[%clk 0:02:22]} 13. Nbc3 {[%clk 0:02:44]}  f5 {[%clk 0:02:18]} 14. Rc1 {[%clk 0:02:43]}  e5 {[%clk 0:02:12]} 15. b5 {[%clk 0:02:33]}  Bxb5 {[%clk 0:02:07]} 16. Nxb5 {[%clk 0:02:33]}  cxb5 {[%clk 0:02:08]} 17. Nc3 {[%clk 0:02:34]}  d4 {[%clk 0:02:07]} 18. exd4 {[%clk 0:02:34]}  Qxd4 {[%clk 0:02:05]} 19. Nxb5 {[%clk 0:02:32]}  Qf4 {[%clk 0:01:36]} 20. g3 {[%clk 0:02:28]}  Qh6 {[%clk 0:01:35]} 21. c6 {[%clk 0:02:28]}  f4 {[%clk 0:01:34]} 22. c7 {[%clk 0:02:26]}  e4 {[%clk 0:01:27]} 23. Qg4 {[%clk 0:02:25]}  fxg3 {[%clk 0:01:19]} 24. hxg3 {[%clk 0:02:24]}  f5 {[%clk 0:01:19]} 25. Qf4 {[%clk 0:02:19]}  Qe6 {[%clk 0:01:17]} 26. Nd6 {[%clk 0:02:17]}  Bh6 {[%clk 0:01:17]} 27. Qh4 {[%clk 0:01:53]}  Bxc1 {[%clk 0:01:13]} 28. Rxc1 {[%clk 0:01:42]}  Qxd6 {[%clk 0:01:13]} 29. Qg5+ {[%clk 0:01:43]}  Qg6 {[%clk 0:01:09]} 30. Qf4 {[%clk 0:01:34]}  Rac8 {[%clk 0:01:05]} 31. Rc5 {[%clk 0:01:28]}  Rf7 {[%clk 0:01:02]} 32. a4 {[%clk 0:01:17]}  Qg7 {[%clk 0:00:50]} 33. Qd6 {[%clk 0:01:09]}  Rfxc7 {[%clk 0:00:44]} 34. Rxf5 {[%clk 0:00:59]}  e3 {[%clk 0:00:41]} 35. Qe6+ {[%clk 0:00:36]}  Kh8 {[%clk 0:00:41]} 36. Qxe3 {[%clk 0:00:37]}  Re7 {[%clk 0:00:33]} 37. Qf4 {[%clk 0:00:32]}  Ra7 {[%clk 0:00:17]} 38. a5 {[%clk 0:00:25]}  Qa1+ {[%clk 0:00:16]} 39. Kg2 {[%clk 0:00:23]}  Rg8 {[%clk 0:00:13]} 40. Re5 {[%clk 0:00:19]}  Qc3 {[%clk 0:00:09]} 41. Qf6+ {[%clk 0:00:16]}  Rag7 {[%clk 0:00:10]} 42. a6 {[%clk 0:00:16]}  Qc8 {[%clk 0:00:09]} 43. Re6 {[%clk 0:00:09]}  Qa8+ {[%clk 0:00:09]} 44. Kg1 {[%clk 0:00:09]}  Rf8 {[%clk 0:00:08]} 45. Qe5 {[%clk 0:00:09]}  Qf3 {[%clk 0:00:07]} 46. Qd4 {[%clk 0:00:04]}  Kg8 {[%clk 0:00:05]} 47. Qe3 {[%clk 0:00:01]}  Qxe3 {[%clk 0:00:05]} 48. Rxe3 {[%clk 0:00:02]}  Ra7 {[%clk 0:00:05]} 49. Re6 {[%clk 0:00:02]}  Rfa8 {[%clk 0:00:06]} 50. Kg2 {[%clk 0:00:02]}  Rxa6 {[%clk 0:00:06]} 51. Re5 {[%clk 0:00:03]}  Ra5 {[%clk 0:00:06]} 52. Re4 {[%clk 0:00:03]}  R5a7 {[%clk 0:00:07]} 53. f4 {[%clk 0:00:03]}  Rf7 {[%clk 0:00:07]} 54. Kf3 {[%clk 0:00:03]}  Ra3+ {[%clk 0:00:08]} 55. Kf2 {[%clk 0:00:00]}  Rg7 {[%clk 0:00:08]} 0-1

[Event "January 2 Early 2024"]
[Site "https://www.chess.com"]
[Date "2024.01.02"]
[Round "3"]
[White "Haug, Havard"]
[Black "Paravyan, David"]
[Result "0-1"]
[Board "5"]
[TimeControl "180+1"]
[WhiteFideId "1547887"]
[BlackFideId "4194985"]
[WhiteElo "2788"]
[BlackElo "3098"]
[WhiteTeam "NOR"]
[BlackTeam "FID"]
[WhiteClock "0:00:39"]
[BlackClock "0:02:39"]

1. e4 {[%clk 0:03:00]}  e5 {[%clk 0:02:59]} 2. Nf3 {[%clk 0:02:58]}  Nf6 {[%clk 0:02:59]} 3. Nxe5 {[%clk 0:02:55]}  d6 {[%clk 0:02:59]} 4. Nf3 {[%clk 0:02:54]}  Nxe4 {[%clk 0:03:00]} 5. d3 {[%clk 0:02:54]}  Nf6 {[%clk 0:02:58]} 6. d4 {[%clk 0:02:54]}  d5 {[%clk 0:02:58]} 7. Bd3 {[%clk 0:02:54]}  c5 {[%clk 0:02:58]} 8. dxc5 {[%clk 0:02:51]}  Bxc5 {[%clk 0:02:58]} 9. O-O {[%clk 0:02:52]}  O-O {[%clk 0:02:58]} 10. Nbd2 {[%clk 0:02:49]}  Nc6 {[%clk 0:02:58]} 11. Nb3 {[%clk 0:02:48]}  Bb6 {[%clk 0:02:59]} 12. Bg5 {[%clk 0:02:47]}  Bg4 {[%clk 0:02:58]} 13. c3 {[%clk 0:02:42]}  Re8 {[%clk 0:02:56]} 14. h3 {[%clk 0:02:24]}  Bh5 {[%clk 0:02:56]} 15. Nbd2 {[%clk 0:02:15]}  h6 {[%clk 0:02:48]} 16. Bxf6 {[%clk 0:02:12]}  Qxf6 {[%clk 0:02:49]} 17. Qc2 {[%clk 0:02:12]}  Ne5 {[%clk 0:02:45]} 18. Nxe5 {[%clk 0:01:48]}  Rxe5 {[%clk 0:02:46]} 19. Kh1 {[%clk 0:01:30]}  Rae8 {[%clk 0:02:42]} 20. Nb3 {[%clk 0:01:23]}  Be2 {[%clk 0:02:41]} 21. Bxe2 {[%clk 0:01:19]}  Rxe2 {[%clk 0:02:42]} 22. Qd3 {[%clk 0:01:20]}  Rxf2 {[%clk 0:02:41]} 23. Rxf2 {[%clk 0:01:17]}  Qxf2 {[%clk 0:02:42]} 24. Nd4 {[%clk 0:00:54]}  Re1+ {[%clk 0:02:40]} 25. Rxe1 {[%clk 0:00:55]}  Qxe1+ {[%clk 0:02:41]} 26. Kh2 {[%clk 0:00:55]}  Bc7+ {[%clk 0:02:42]} 27. g3 {[%clk 0:00:56]}  Qf2+ {[%clk 0:02:42]} 28. Kh1 {[%clk 0:00:57]}  Bxg3 {[%clk 0:02:42]} 29. Nf3 {[%clk 0:00:54]}  g6 {[%clk 0:02:39]} 30. Qxd5 {[%clk 0:00:46]}  Qf1+ {[%clk 0:02:40]} 31. Ng1 {[%clk 0:00:46]}  Bf2 {[%clk 0:02:40]} 32. Qg2 {[%clk 0:00:39]}  Qxg1+ {[%clk 0:02:40]} 33. Qxg1 {[%clk 0:00:39]}  Bxg1 {[%clk 0:02:41]} 34. Kxg1 {[%clk 0:00:39]}  f5 {[%clk 0:02:42]} 35. c4 {[%clk 0:00:40]}  g5 {[%clk 0:02:41]} 36. b4 {[%clk 0:00:41]}  Kf7 {[%clk 0:02:41]} 37. c5 {[%clk 0:00:41]}  Ke6 {[%clk 0:02:41]} 38. a4 {[%clk 0:00:42]}  Kd5 {[%clk 0:02:41]} 39. a5 {[%clk 0:00:39]}  a6 {[%clk 0:02:39]} 0-1

[Event "January 2 Early 2024"]
[Site "https://www.chess.com"]
[Date "2024.01.02"]
[Round "3"]
[White "Krzyzanowski, Marcin"]
[Black "Makarian, Rudik"]
[Result "1-0"]
[Board "9"]
[TimeControl "180+1"]
[WhiteFideId "1132199"]
[BlackFideId "44105681"]
[WhiteElo "2777"]
[BlackElo "3043"]
[WhiteTeam "POL"]
[BlackTeam "FID"]
[WhiteClock "0:00:18"]
[BlackClock "0:00:10"]

1. e4 {[%clk 0:03:00]}  c5 {[%clk 0:03:00]} 2. Nf3 {[%clk 0:03:00]}  d6 {[%clk 0:03:01]} 3. d4 {[%clk 0:02:59]}  cxd4 {[%clk 0:03:01]} 4. Nxd4 {[%clk 0:03:00]}  Nf6 {[%clk 0:03:02]} 5. Nc3 {[%clk 0:03:01]}  Nc6 {[%clk 0:03:02]} 6. Bg5 {[%clk 0:03:00]}  Bd7 {[%clk 0:03:02]} 7. Qd2 {[%clk 0:02:56]}  Nxd4 {[%clk 0:03:01]} 8. Qxd4 {[%clk 0:02:56]}  h6 {[%clk 0:03:02]} 9. Bxf6 {[%clk 0:02:54]}  gxf6 {[%clk 0:03:02]} 10. O-O-O {[%clk 0:02:53]}  Qa5 {[%clk 0:03:03]} 11. f4 {[%clk 0:02:50]}  Rc8 {[%clk 0:03:03]} 12. Kb1 {[%clk 0:02:44]}  Qc5 {[%clk 0:03:03]} 13. Qd2 {[%clk 0:02:43]}  h5 {[%clk 0:03:04]} 14. Bd3 {[%clk 0:02:40]}  Bg7 {[%clk 0:03:02]} 15. Rhe1 {[%clk 0:02:36]}  b5 {[%clk 0:02:55]} 16. Nd5 {[%clk 0:02:25]}  e6 {[%clk 0:02:54]} 17. Ne3 {[%clk 0:02:14]}  Ke7 {[%clk 0:02:50]} 18. g3 {[%clk 0:02:11]}  a5 {[%clk 0:02:44]} 19. Bf1 {[%clk 0:02:05]}  Bc6 {[%clk 0:02:30]} 20. Bg2 {[%clk 0:01:58]}  b4 {[%clk 0:02:25]} 21. Nd5+ {[%clk 0:01:49]}  Kd8 {[%clk 0:02:00]} 22. Nxf6 {[%clk 0:01:06]}  Bxf6 {[%clk 0:01:57]} 23. e5 {[%clk 0:01:05]}  Be7 {[%clk 0:01:47]} 24. exd6 {[%clk 0:00:38]}  Bf6 {[%clk 0:01:45]} 25. d7 {[%clk 0:00:34]}  Rc7 {[%clk 0:01:44]} 26. Bxc6 {[%clk 0:00:33]}  Qxc6 {[%clk 0:01:40]} 27. Qe2 {[%clk 0:00:28]}  Rxd7 {[%clk 0:01:28]} 28. f5 {[%clk 0:00:28]}  Rxd1+ {[%clk 0:01:24]} 29. Rxd1+ {[%clk 0:00:29]}  Ke7 {[%clk 0:01:25]} 30. fxe6 {[%clk 0:00:29]}  fxe6 {[%clk 0:01:24]} 31. Qd3 {[%clk 0:00:25]}  a4 {[%clk 0:01:07]} 32. Qe3 {[%clk 0:00:25]}  Rc8 {[%clk 0:01:01]} 33. Qd3 {[%clk 0:00:26]}  Rf8 {[%clk 0:00:45]} 34. Qe3 {[%clk 0:00:25]}  Qc7 {[%clk 0:00:18]} 35. Qe4 {[%clk 0:00:22]}  Qb6 {[%clk 0:00:10]} 36. Qh7+ {[%clk 0:00:19]}  Rf7 {[%clk 0:00:11]} 37. Qg8 {[%clk 0:00:20]}  a3 {[%clk 0:00:11]} 38. Qc8 {[%clk 0:00:18]}  Qa7 {[%clk 0:00:10]} 39. Qd8# {[%clk 0:00:18]} 1-0

[Event "January 2 Early 2024"]
[Site "https://www.chess.com"]
[Date "2024.01.02"]
[Round "3"]
[White "Garcia Ramos, Daniel"]
[Black "Duda, Jan-Krzysztof"]
[Result "0-1"]
[Board "11"]
[TimeControl "180+1"]
[WhiteFideId "32010311"]
[BlackFideId "1170546"]
[WhiteElo "2771"]
[BlackElo "3036"]
[WhiteTeam "ESP"]
[BlackTeam "POL"]
[WhiteClock "0:00:00"]
[BlackClock "0:00:54"]

1. d4 {[%clk 0:02:57]}  e6 {[%clk 0:02:58]} 2. e4 {[%clk 0:02:54]}  c5 {[%clk 0:02:56]} 3. Nf3 {[%clk 0:02:53]}  cxd4 {[%clk 0:02:56]} 4. Nxd4 {[%clk 0:02:54]}  Nf6 {[%clk 0:02:55]} 5. Nc3 {[%clk 0:02:54]}  d6 {[%clk 0:02:55]} 6. Be2 {[%clk 0:02:48]}  a6 {[%clk 0:02:49]} 7. O-O {[%clk 0:02:48]}  b5 {[%clk 0:02:46]} 8. Bf3 {[%clk 0:02:41]}  Ra7 {[%clk 0:02:46]} 9. Be3 {[%clk 0:02:40]}  Rd7 {[%clk 0:02:45]} 10. Re1 {[%clk 0:02:40]}  Bb7 {[%clk 0:02:42]} 11. a4 {[%clk 0:02:25]}  b4 {[%clk 0:02:40]} 12. Nd5 {[%clk 0:02:16]}  exd5 {[%clk 0:02:21]} 13. exd5 {[%clk 0:02:16]}  Be7 {[%clk 0:02:21]} 14. Nc6 {[%clk 0:02:15]}  Qc7 {[%clk 0:02:21]} 15. c3 {[%clk 0:01:10]}  Nxc6 {[%clk 0:02:15]} 16. dxc6 {[%clk 0:01:08]}  Bxc6 {[%clk 0:02:16]} 17. cxb4 {[%clk 0:01:05]}  Bxf3 {[%clk 0:02:13]} 18. Qxf3 {[%clk 0:01:05]}  O-O {[%clk 0:02:13]} 19. b5 {[%clk 0:01:06]}  axb5 {[%clk 0:02:10]} 20. axb5 {[%clk 0:01:06]}  Qb7 {[%clk 0:02:08]} 21. Qc6 {[%clk 0:01:01]}  Nd5 {[%clk 0:01:44]} 22. Ra7 {[%clk 0:00:46]}  Qxc6 {[%clk 0:01:43]} 23. bxc6 {[%clk 0:00:47]}  Rxa7 {[%clk 0:01:43]} 24. Bxa7 {[%clk 0:00:48]}  Rc8 {[%clk 0:01:44]} 25. Rc1 {[%clk 0:00:44]}  Bd8 {[%clk 0:01:30]} 26. Kf1 {[%clk 0:00:35]}  Nb4 {[%clk 0:01:24]} 27. Rc4 {[%clk 0:00:10]}  Nxc6 {[%clk 0:01:22]} 28. Be3 {[%clk 0:00:11]}  Ba5 {[%clk 0:01:20]} 29. Ke2 {[%clk 0:00:10]}  d5 {[%clk 0:01:11]} 30. Rc5 {[%clk 0:00:09]}  d4 {[%clk 0:01:12]} 31. Bf4 {[%clk 0:00:05]}  Bb4 {[%clk 0:01:03]} 32. Rc4 {[%clk 0:00:05]}  Kf8 {[%clk 0:00:56]} 33. g4 {[%clk 0:00:01]}  Ke7 {[%clk 0:00:56]} 34. g5 {[%clk 0:00:01]}  Ke6 {[%clk 0:00:55]} 35. b3 {[%clk 0:00:01]}  Kd5 {[%clk 0:00:55]} 36. Kf3 {[%clk 0:00:02]}  Ra8 {[%clk 0:00:53]} 37. h4 {[%clk 0:00:00]}  Ra3 {[%clk 0:00:54]} 0-1

[Event "January 2 Early 2024"]
[Site "https://www.chess.com"]
[Date "2024.01.02"]
[Round "3"]
[White "Salem, A.R. Saleh"]
[Black "Liyanage, Ranindu Dilshan"]
[Result "1-0"]
[Board "15"]
[TimeControl "180+1"]
[WhiteFideId "9301348"]
[BlackFideId "9915834"]
[WhiteElo "3012"]
[BlackElo "2739"]
[WhiteTeam "UAE"]
[BlackTeam "SRI"]
[WhiteClock "0:01:06"]
[BlackClock "0:00:16"]

1. d4 {[%clk 0:03:00]}  d5 {[%clk 0:02:59]} 2. c4 {[%clk 0:03:01]}  e6 {[%clk 0:02:59]} 3. Nc3 {[%clk 0:03:01]}  Nf6 {[%clk 0:03:00]} 4. Nf3 {[%clk 0:03:01]}  Bb4 {[%clk 0:02:59]} 5. e3 {[%clk 0:03:02]}  O-O {[%clk 0:02:58]} 6. Bd3 {[%clk 0:03:02]}  b6 {[%clk 0:02:55]} 7. O-O {[%clk 0:03:02]}  Bb7 {[%clk 0:02:55]} 8. cxd5 {[%clk 0:03:02]}  exd5 {[%clk 0:02:55]} 9. a3 {[%clk 0:03:03]}  Bd6 {[%clk 0:02:49]} 10. b4 {[%clk 0:03:03]}  a6 {[%clk 0:02:42]} 11. Qb3 {[%clk 0:03:03]}  Nbd7 {[%clk 0:02:42]} 12. a4 {[%clk 0:03:02]}  Qe7 {[%clk 0:02:31]} 13. Rb1 {[%clk 0:02:56]}  Rab8 {[%clk 0:02:29]} 14. b5 {[%clk 0:02:55]}  a5 {[%clk 0:02:20]} 15. Ra1 {[%clk 0:02:55]}  Rbd8 {[%clk 0:02:17]} 16. Ba3 {[%clk 0:02:55]}  Rfe8 {[%clk 0:02:17]} 17. Rfc1 {[%clk 0:02:51]}  Ne4 {[%clk 0:01:52]} 18. Bxd6 {[%clk 0:02:46]}  Qxd6 {[%clk 0:01:53]} 19. Rc2 {[%clk 0:02:39]}  Re6 {[%clk 0:01:35]} 20. Rac1 {[%clk 0:02:35]}  Rh6 {[%clk 0:01:34]} 21. Ne2 {[%clk 0:02:33]}  Rc8 {[%clk 0:01:18]} 22. Ng3 {[%clk 0:02:31]}  Rf6 {[%clk 0:01:10]} 23. Qb2 {[%clk 0:02:26]}  g6 {[%clk 0:01:01]} 24. Ne5 {[%clk 0:02:24]}  Re6 {[%clk 0:00:58]} 25. Nc6 {[%clk 0:01:59]}  h5 {[%clk 0:00:53]} 26. Nxe4 {[%clk 0:01:53]}  dxe4 {[%clk 0:00:53]} 27. Bc4 {[%clk 0:01:54]}  Rf6 {[%clk 0:00:53]} 28. Bb3 {[%clk 0:01:50]}  Rf5 {[%clk 0:00:43]} 29. Qc3 {[%clk 0:01:43]}  h4 {[%clk 0:00:40]} 30. h3 {[%clk 0:01:42]}  Rg5 {[%clk 0:00:38]} 31. Qc4 {[%clk 0:01:40]}  Rf8 {[%clk 0:00:29]} 32. Nxa5 {[%clk 0:01:21]}  Bc8 {[%clk 0:00:18]} 33. Qxc7 {[%clk 0:01:20]}  Qb4 {[%clk 0:00:18]} 34. Qf4 {[%clk 0:01:14]}  Rf5 {[%clk 0:00:17]} 35. Qh6 {[%clk 0:01:11]}  bxa5 {[%clk 0:00:17]} 36. Qxg6+ {[%clk 0:01:09]}  Kh8 {[%clk 0:00:16]} 37. Qxf5 {[%clk 0:01:06]}  Nc5 {[%clk 0:00:16]} 1-0

[Event "January 2 Early 2024"]
[Site "https://www.chess.com"]
[Date "2024.01.02"]
[Round "3"]
[White "Vokhidov, Shamsiddin"]
[Black "Arabidze, Meri"]
[Result "1-0"]
[Board "19"]
[TimeControl "180+1"]
[WhiteFideId "14204223"]
[BlackFideId "13604040"]
[WhiteElo "2978"]
[BlackElo "2726"]
[WhiteTeam "UZB"]
[BlackTeam "GEO"]
[WhiteClock "0:01:13"]
[BlackClock "0:00:00"]

1. d4 {[%clk 0:03:00]}  Nf6 {[%clk 0:02:56]} 2. c4 {[%clk 0:03:01]}  e6 {[%clk 0:02:56]} 3. Nf3 {[%clk 0:03:01]}  Bb4+ {[%clk 0:02:54]} 4. Bd2 {[%clk 0:03:00]}  Qe7 {[%clk 0:02:54]} 5. g3 {[%clk 0:02:59]}  Bxd2+ {[%clk 0:02:52]} 6. Qxd2 {[%clk 0:02:58]}  Nc6 {[%clk 0:02:53]} 7. Nc3 {[%clk 0:02:54]}  d5 {[%clk 0:02:52]} 8. Bg2 {[%clk 0:02:54]}  dxc4 {[%clk 0:02:52]} 9. O-O {[%clk 0:02:52]}  O-O {[%clk 0:02:52]} 10. Ne5 {[%clk 0:02:52]}  Nxe5 {[%clk 0:02:52]} 11. dxe5 {[%clk 0:02:53]}  Nd7 {[%clk 0:02:53]} 12. Qd4 {[%clk 0:02:51]}  Qc5 {[%clk 0:02:53]} 13. Qxc5 {[%clk 0:02:51]}  Nxc5 {[%clk 0:02:54]} 14. Nb5 {[%clk 0:02:50]}  Bd7 {[%clk 0:02:40]} 15. Na3 {[%clk 0:02:48]}  c3 {[%clk 0:02:23]} 16. bxc3 {[%clk 0:02:46]}  Rad8 {[%clk 0:02:22]} 17. Rfd1 {[%clk 0:02:38]}  Ba4 {[%clk 0:02:15]} 18. Rd4 {[%clk 0:02:38]}  b6 {[%clk 0:02:16]} 19. f4 {[%clk 0:02:36]}  g6 {[%clk 0:02:14]} 20. Kf2 {[%clk 0:02:34]}  Rd7 {[%clk 0:02:07]} 21. Ke3 {[%clk 0:02:30]}  Rfd8 {[%clk 0:02:07]} 22. Rb1 {[%clk 0:02:28]}  a5 {[%clk 0:01:53]} 23. g4 {[%clk 0:02:23]}  Kf8 {[%clk 0:01:48]} 24. h4 {[%clk 0:02:21]}  Ke7 {[%clk 0:01:44]} 25. Bf3 {[%clk 0:02:21]}  Rxd4 {[%clk 0:01:15]} 26. cxd4 {[%clk 0:02:20]}  Na6 {[%clk 0:01:16]} 27. Rc1 {[%clk 0:02:08]}  Nb4 {[%clk 0:01:00]} 28. Rxc7+ {[%clk 0:02:05]}  Rd7 {[%clk 0:01:00]} 29. Rc8 {[%clk 0:02:06]}  Nxa2 {[%clk 0:00:54]} 30. f5 {[%clk 0:02:06]}  Rd8 {[%clk 0:00:33]} 31. Rc7+ {[%clk 0:01:57]}  Rd7 {[%clk 0:00:32]} 32. Rc4 {[%clk 0:01:50]}  Nb4 {[%clk 0:00:29]} 33. Rc8 {[%clk 0:01:42]}  Rd8 {[%clk 0:00:24]} 34. Rc7+ {[%clk 0:01:40]}  Rd7 {[%clk 0:00:25]} 35. Rc1 {[%clk 0:01:37]}  gxf5 {[%clk 0:00:21]} 36. gxf5 {[%clk 0:01:37]}  exf5 {[%clk 0:00:22]} 37. Rc4 {[%clk 0:01:34]}  Bd1 {[%clk 0:00:11]} 38. Nb5 {[%clk 0:01:30]}  Bb3 {[%clk 0:00:05]} 39. Rc8 {[%clk 0:01:26]}  Bd5 {[%clk 0:00:06]} 40. Nc7 {[%clk 0:01:18]}  Rxc7 {[%clk 0:00:02]} 41. Rxc7+ {[%clk 0:01:18]}  Kd8 {[%clk 0:00:02]} 42. Ra7 {[%clk 0:01:16]}  Ke8 {[%clk 0:00:01]} 43. Kf4 {[%clk 0:01:13]}  Kf8 {[%clk 0:00:01]} 44. Kxf5 {[%clk 0:01:13]}  Kg7 {[%clk 0:00:01]} 45. Bxd5 {[%clk 0:01:12]}  Nxd5 {[%clk 0:00:00]} 46. e6 {[%clk 0:01:13]} 1-0

[Event "January 2 Early 2024"]
[Site "https://www.chess.com"]
[Date "2024.01.02"]
[Round "3"]
[White "Dyachuk, Artem"]
[Black "Drygalov, Sergey"]
[Result "0-1"]
[Board "23"]
[TimeControl "180+1"]
[WhiteFideId "34107924"]
[BlackFideId "24171743"]
[WhiteElo "2712"]
[BlackElo "2947"]
[WhiteTeam "UKR"]
[BlackTeam "RUS"]
[WhiteClock "0:00:01"]
[BlackClock "0:01:33"]

1. e4 {[%clk 0:03:00]}  c5 {[%clk 0:02:59]} 2. Nf3 {[%clk 0:03:00]}  d6 {[%clk 0:02:58]} 3. d4 {[%clk 0:03:00]}  cxd4 {[%clk 0:02:58]} 4. Nxd4 {[%clk 0:03:01]}  Nf6 {[%clk 0:02:59]} 5. Nc3 {[%clk 0:03:01]}  a6 {[%clk 0:02:58]} 6. h3 {[%clk 0:03:01]}  e5 {[%clk 0:02:57]} 7. Nb3 {[%clk 0:03:02]}  Be7 {[%clk 0:02:55]} 8. g4 {[%clk 0:03:02]}  h6 {[%clk 0:02:56]} 9. Be3 {[%clk 0:03:02]}  Nbd7 {[%clk 0:02:51]} 10. Qd2 {[%clk 0:03:01]}  b5 {[%clk 0:02:25]} 11. Bg2 {[%clk 0:03:01]}  Bb7 {[%clk 0:02:25]} 12. Nd5 {[%clk 0:02:48]}  Bxd5 {[%clk 0:02:20]} 13. exd5 {[%clk 0:02:48]}  a5 {[%clk 0:02:21]} 14. a4 {[%clk 0:02:47]}  b4 {[%clk 0:02:21]} 15. O-O {[%clk 0:02:37]}  O-O {[%clk 0:02:21]} 16. f4 {[%clk 0:02:33]}  Qc7 {[%clk 0:02:19]} 17. g5 {[%clk 0:02:18]}  hxg5 {[%clk 0:02:16]} 18. fxg5 {[%clk 0:02:19]}  Nh5 {[%clk 0:02:16]} 19. Qf2 {[%clk 0:01:55]}  g6 {[%clk 0:02:14]} 20. Rae1 {[%clk 0:01:40]}  Qc4 {[%clk 0:02:10]} 21. Nd2 {[%clk 0:01:26]}  Qxc2 {[%clk 0:02:09]} 22. Rc1 {[%clk 0:01:26]}  Qxa4 {[%clk 0:02:07]} 23. Rc6 {[%clk 0:01:18]}  Ng7 {[%clk 0:02:02]} 24. Be4 {[%clk 0:01:04]}  Qb5 {[%clk 0:02:02]} 25. Rfc1 {[%clk 0:00:47]}  a4 {[%clk 0:02:03]} 26. Nb1 {[%clk 0:00:36]}  a3 {[%clk 0:02:02]} 27. bxa3 {[%clk 0:00:37]}  bxa3 {[%clk 0:02:03]} 28. Nc3 {[%clk 0:00:37]}  Qa5 {[%clk 0:01:57]} 29. Ra1 {[%clk 0:00:29]}  Nh5 {[%clk 0:01:43]} 30. Bc1 {[%clk 0:00:20]}  Nf4 {[%clk 0:01:39]} 31. Kf1 {[%clk 0:00:13]}  Qb4 {[%clk 0:01:36]} 32. Qa2 {[%clk 0:00:05]}  Nc5 {[%clk 0:01:36]} 33. Bxa3 {[%clk 0:00:03]}  Qxc3 {[%clk 0:01:33]} 34. Rxc5 {[%clk 0:00:01]} 0-1

[Event "January 2 Early 2024"]
[Site "https://www.chess.com"]
[Date "2024.01.02"]
[Round "3"]
[White "Tarhan, Adar"]
[Black "Makhnev, Denis"]
[Result "1-0"]
[Board "25"]
[TimeControl "180+1"]
[WhiteFideId "34544712"]
[BlackFideId "13707647"]
[WhiteElo "2705"]
[BlackElo "2937"]
[WhiteTeam "TUR"]
[BlackTeam "KAZ"]
[WhiteClock "0:01:57"]
[BlackClock "0:00:00"]

1. e4 {[%clk 0:03:00]}  e5 {[%clk 0:02:59]} 2. Nf3 {[%clk 0:03:01]}  Nc6 {[%clk 0:02:59]} 3. Bb5 {[%clk 0:03:01]}  a6 {[%clk 0:03:00]} 4. Ba4 {[%clk 0:02:59]}  Bc5 {[%clk 0:03:00]} 5. c3 {[%clk 0:02:57]}  Nge7 {[%clk 0:03:00]} 6. d4 {[%clk 0:02:57]}  exd4 {[%clk 0:03:00]} 7. cxd4 {[%clk 0:02:58]}  Bb4+ {[%clk 0:03:01]} 8. Bd2 {[%clk 0:02:58]}  Bxd2+ {[%clk 0:03:01]} 9. Qxd2 {[%clk 0:02:59]}  d5 {[%clk 0:03:01]} 10. exd5 {[%clk 0:02:56]}  Qxd5 {[%clk 0:03:01]} 11. O-O {[%clk 0:02:52]}  O-O {[%clk 0:03:00]} 12. Nc3 {[%clk 0:02:52]}  Qd6 {[%clk 0:03:00]} 13. Rfe1 {[%clk 0:02:51]}  Ng6 {[%clk 0:02:41]} 14. Ne4 {[%clk 0:02:43]}  Qd5 {[%clk 0:02:41]} 15. Bb3 {[%clk 0:02:43]}  Qd8 {[%clk 0:02:29]} 16. d5 {[%clk 0:02:39]}  Na7 {[%clk 0:01:27]} 17. d6 {[%clk 0:02:36]}  Bg4 {[%clk 0:01:26]} 18. Nfg5 {[%clk 0:02:33]}  Nc6 {[%clk 0:01:15]} 19. Nxf7 {[%clk 0:02:15]}  Rxf7 {[%clk 0:01:09]} 20. Bxf7+ {[%clk 0:02:16]}  Kh8 {[%clk 0:00:30]} 21. Bxg6 {[%clk 0:02:00]}  hxg6 {[%clk 0:00:30]} 22. Qf4 {[%clk 0:02:01]}  Bf5 {[%clk 0:00:29]} 23. Ng5 {[%clk 0:01:58]}  Kg8 {[%clk 0:00:00]} 24. Qc4+ {[%clk 0:01:57]} 1-0

[Event "January 2 Early 2024"]
[Site "https://www.chess.com"]
[Date "2024.01.02"]
[Round "3"]
[White "Agibileg, Uurtsaikh"]
[Black "Kovalev, Vladislav"]
[Result "0-1"]
[Board "27"]
[TimeControl "180+1"]
[WhiteFideId "4901606"]
[BlackFideId "13504398"]
[WhiteElo "2687"]
[BlackElo "2932"]
[WhiteTeam "MGL"]
[BlackTeam "FID"]
[WhiteClock "0:00:07"]
[BlackClock "0:00:04"]

1. d4 {[%clk 0:03:00]}  Nf6 {[%clk 0:03:00]} 2. c4 {[%clk 0:03:00]}  e6 {[%clk 0:03:01]} 3. Nc3 {[%clk 0:03:00]}  Bb4 {[%clk 0:03:01]} 4. f3 {[%clk 0:03:01]}  c5 {[%clk 0:02:56]} 5. d5 {[%clk 0:03:00]}  b5 {[%clk 0:02:56]} 6. e4 {[%clk 0:03:00]}  bxc4 {[%clk 0:02:56]} 7. Bxc4 {[%clk 0:02:55]}  Nxd5 {[%clk 0:02:56]} 8. Bxd5 {[%clk 0:02:54]}  exd5 {[%clk 0:02:57]} 9. Qxd5 {[%clk 0:02:55]}  Nc6 {[%clk 0:02:57]} 10. Ne2 {[%clk 0:02:45]}  O-O {[%clk 0:02:57]} 11. O-O {[%clk 0:02:45]}  Qb6 {[%clk 0:02:37]} 12. Rd1 {[%clk 0:02:41]}  Bb7 {[%clk 0:02:19]} 13. Bf4 {[%clk 0:02:34]}  Nd4 {[%clk 0:01:41]} 14. Qxd7 {[%clk 0:02:24]}  Bxc3 {[%clk 0:01:41]} 15. Nxc3 {[%clk 0:02:22]}  Qxb2 {[%clk 0:01:42]} 16. Bd2 {[%clk 0:01:56]}  Rfd8 {[%clk 0:01:39]} 17. Qg4 {[%clk 0:01:46]}  Bc8 {[%clk 0:00:55]} 18. Qg5 {[%clk 0:01:41]}  Be6 {[%clk 0:00:48]} 19. Rab1 {[%clk 0:01:39]}  Qc2 {[%clk 0:00:45]} 20. Rbc1 {[%clk 0:01:35]}  Qb2 {[%clk 0:00:37]} 21. Rb1 {[%clk 0:01:29]}  Qc2 {[%clk 0:00:37]} 22. Rbc1 {[%clk 0:01:29]}  Qd3 {[%clk 0:00:37]} 23. Bf4 {[%clk 0:01:28]}  Qa6 {[%clk 0:00:31]} 24. Be5 {[%clk 0:01:28]}  f6 {[%clk 0:00:20]} 25. Bxf6 {[%clk 0:01:26]}  Rd7 {[%clk 0:00:21]} 26. Be5 {[%clk 0:01:03]}  Rf8 {[%clk 0:00:21]} 27. f4 {[%clk 0:01:03]}  h6 {[%clk 0:00:19]} 28. Qg3 {[%clk 0:01:03]}  Qc4 {[%clk 0:00:05]} 29. Kh1 {[%clk 0:01:01]}  Rdf7 {[%clk 0:00:03]} 30. f5 {[%clk 0:01:00]}  Bxf5 {[%clk 0:00:04]} 31. exf5 {[%clk 0:00:59]}  Nxf5 {[%clk 0:00:05]} 32. Qd3 {[%clk 0:00:25]}  Qe6 {[%clk 0:00:04]} 33. Bf4 {[%clk 0:00:14]}  Qg6 {[%clk 0:00:05]} 34. h3 {[%clk 0:00:13]}  Qh5 {[%clk 0:00:03]} 35. g4 {[%clk 0:00:12]}  Qh4 {[%clk 0:00:02]} 36. gxf5 {[%clk 0:00:11]}  Qxf4 {[%clk 0:00:03]} 37. Nd5 {[%clk 0:00:10]}  Qh4 {[%clk 0:00:02]} 38. Rg1 {[%clk 0:00:10]}  Rxf5 {[%clk 0:00:02]} 39. Rg2 {[%clk 0:00:08]}  Rf3 {[%clk 0:00:03]} 40. Qe4 {[%clk 0:00:07]}  Rxh3+ {[%clk 0:00:03]} 41. Rh2 {[%clk 0:00:07]}  Rxh2+ {[%clk 0:00:03]} 42. Kg1 {[%clk 0:00:07]}  Qf2# {[%clk 0:00:04]} 0-1